bitfinex/quotes_SOLUSD_20220102
["timestamp","ask_amount","ask_price","bid_price","bid_amount"]
[1641088509606,30.7274849,177.98,177.89,8.4303]
[1641088510207,30.7274849,177.98,177.9,8.33]
[1641088510408,30.9874849,177.98,177.9,8.33]
[1641088510608,30.9874849,177.98,177.91,8.4296]
[1641088511626,39.4170849,177.98,177.91,8.4296]
[1641088512429,30.9874849,177.98,177.91,8.4296]
[1641088513233,30.9874849,177.98,177.88,1.2309]
[1641088514630,9.759,177.97,177.88,9.6616]
[1641088515030,10.019,177.97,177.88,9.6616]
[1641088515530,10.019,177.97,177.88,17.9916]
[1641088523441,8.33,178.02,177.88,17.9916]
[1641088523442,8.4295,177.99,177.88,18.2516]
[1641088523642,9.6044,178.08,177.96,8.4272]
[1641088523643,1.2958,178.04,177.96,8.4272]
[1641088523843,1.2958,178.04,177.96,16.7572]
[1641088524044,2.7765618,178.04,177.96,16.7572]
[1641088524441,26.07173161,178.04,177.96,16.7572]
[1641088524642,24.77593161,178.04,177.96,16.7572]
[1641088524843,23.55516981,178.04,177.96,16.7572]
[1641088525043,23.29516981,178.04,177.96,16.7572]
[1641088526647,23.29516981,178.04,177.96,17.0172]
[1641088528350,23.29516981,178.04,177.96,16.7572]
[1641088529254,23.55516981,178.04,177.96,16.7572]
[1641088539086,23.55516981,178.04,177.96,8.4272]
[1641088539289,24.05516981,178.04,177.94,8.4284]
[1641088539487,24.05516981,178.04,177.91,9.5593]
[1641088539687,1.3185,178.03,177.91,9.5593]
[1641088539888,1.8185,178.03,177.91,9.0593]
[1641088540089,8.4297,178.0,177.91,9.0593]
[1641088540287,8.4297,178.0,177.91,8.33]
[1641088540488,8.6897,178.0,177.91,8.33]
[1641088540993,0.26,178.0,177.91,8.33]
[1641088541392,8.6889,178.01,177.91,8.33]
[1641088541795,1.3245,178.0,177.91,8.33]
[1641088541991,1.5845,178.0,177.93,8.4288]
[1641088544797,1.3245,178.0,177.93,8.4288]
[1641088545398,31.72266981,178.04,177.93,8.4288]
[1641088545597,1.3054,178.03,177.93,8.4288]
[1641088545996,1.5654,178.03,177.93,8.4288]
[1641088547600,9.9934,178.03,177.93,8.4288]
[1641088547799,10.4934,178.03,177.93,8.4288]
[1641088549507,9.9934,178.03,177.93,8.4288]
[1641088555311,10.4934,178.03,177.93,8.4288]
[1641088556331,1.3054,178.03,177.93,16.7588]
[1641088556531,1.3054,178.03,177.93,17.0188]
[1641088557632,1.5654,178.03,177.93,17.0188]
[1641088557831,1.5654,178.03,177.93,18.3444]
[1641088559435,1.5654,178.03,177.93,18.0844]
[1641088559637,2.0654,178.03,177.93,16.7588]
[1641088560435,1.5654,178.03,177.93,16.7588]
[1641088560635,9.9936,178.03,177.93,16.7588]
[1641088561049,10.4936,178.03,177.93,16.7588]
[1641088561737,9.9936,178.03,177.93,16.7588]
[1641088561938,10.4936,178.03,177.93,16.7588]
[1641088562538,9.9936,178.03,177.93,16.7588]
[1641088565545,25.5526,178.03,177.91,8.4301]
[1641088565744,25.5526,178.03,177.86,83.5961]
[1641088566145,27.0333618,178.03,177.86,83.5961]
[1641088566544,2.93110641,178.02,177.86,83.5961]
[1641088566745,8.4302,177.98,177.91,8.4302]
[1641088566944,28.19830522,177.97,177.91,8.4302]
[1641088567347,28.45830522,177.97,177.91,8.4302]
[1641088568546,36.88890522,177.97,177.91,8.4302]
[1641088568949,36.88890522,177.97,177.9,8.4306]
[1641088569748,38.09200522,177.97,177.9,8.4306]
[1641088571254,1.2031,177.97,177.9,8.4306]
[1641088572554,1.4631,177.97,177.9,8.4306]
[1641088572751,1.2031,177.97,177.9,8.4306]
[1641088573052,1.4631,177.97,177.9,8.4306]
[1641088592299,1.4631,177.97,177.91,8.33]
[1641088592498,1.4631,177.97,177.92,8.4295]
[1641088593101,1.4631,177.97,177.88,29.3855]
[1641088593300,1.4631,177.97,177.88,1.2887]
[1641088593499,1.4631,177.97,177.9,8.4303]
[1641088593699,1.4631,177.97,177.88,1.2887]
[1641088593900,1.9631,177.97,177.88,1.2887]
[1641088594100,1.4631,177.97,177.88,1.2887]
[1641088594700,9.8934,177.97,177.88,9.7199]
[1641088595101,9.8934,177.97,177.88,18.0499]
[1641088596403,9.8934,177.97,177.88,9.7199]
[1641088597202,10.3934,177.97,177.88,9.7199]
[1641088597603,9.8934,177.97,177.88,9.7199]
[1641088598206,10.3934,177.97,177.88,9.7199]
[1641088599106,10.3934,177.97,177.88,8.4312]
[1641088599307,10.3934,177.97,177.86,74.0402]
[1641088599505,10.3934,177.97,177.87,8.432]
[1641088600806,11.8741618,177.97,177.87,8.432]
[1641088601205,10.3934,177.97,177.87,8.432]
[1641088605509,11.8741618,177.97,177.87,8.432]
[1641088606110,1.4807618,177.96,177.87,8.432]
[1641088606313,8.4323,177.93,177.87,8.432]
[1641088606511,25.69331174,177.92,177.87,8.432]
[1641088606912,25.95331174,177.92,177.87,8.432]
[1641088608614,34.38571174,177.92,177.87,8.432]
[1641088611413,34.38571174,177.92,177.86,8.4323]
[1641088615915,34.38571174,177.92,177.85,16.7625]
[1641088619020,8.6924,177.92,177.85,16.7625]
[1641088621327,9.965,177.92,177.85,16.7625]
[1641088622728,8.4319,177.93,177.85,16.7625]
[1641088622929,81.8224618,177.96,177.85,22.2525]
[1641088623127,2.7828618,177.96,177.85,22.2525]
[1641088623628,1.4807618,177.96,177.85,22.2525]
[1641088623852,1.4807618,177.99,177.86,1.42669368]
[1641088624053,1.4807618,177.99,177.93,8.4281]
[1641088624352,1.4807618,177.99,177.93,16.7581]
[1641088624956,1.4807618,177.99,177.93,8.33]
[1641088625152,1.7407618,177.99,177.93,8.33]
[1641088625354,0.26,177.99,177.93,8.33]
[1641088625553,24.78066137,178.0,177.93,8.33]
[1641088625752,25.28066137,178.0,177.93,8.33]
[1641088625956,8.4301,177.97,177.93,8.33]
[1641088626353,8.6901,177.97,177.93,8.33]
[1641088627558,0.26,177.97,177.93,8.33]
[1641088627959,0.26,177.98,177.93,8.33]
[1641088628159,0.76,177.98,177.93,8.33]
[1641088628358,2.9761618,177.99,177.93,8.33]
[1641088628558,8.4304,177.97,177.93,8.33]
[1641088628959,9.1904,177.97,177.93,8.33]
[1641088630061,15.2064,177.97,177.88,8.33]
[1641088630262,16.63309368,177.97,177.85,1.2468]
[1641088630461,8.4323,177.93,177.85,1.2468]
[1641088630659,9.68345548,177.97,177.85,1.2468]
[1641088630860,0.26,177.93,177.85,1.2468]
[1641088631162,4.44085548,177.95,177.85,1.2468]
[1641088631362,4.94085548,177.95,177.84,86.3479]
[1641088631561,8.4329,177.91,177.84,86.3479]
[1641088631762,30.75739567,177.9,177.84,8.33]
[1641088631961,31.01739567,177.9,177.84,8.33]
[1641088632263,31.01739567,177.9,177.8,8.33]
[1641088632760,1.2592,177.89,177.8,8.33]
[1641088632961,8.4349,177.87,177.8,8.33]
[1641088633161,1.2592,177.89,177.8,8.33]
[1641088633364,30.75739567,177.9,177.8,8.33]
[1641088633562,30.75739567,177.9,177.8,16.764]
[1641088634062,39.19089567,177.9,177.8,16.764]
[1641088634762,39.45089567,177.9,177.8,16.764]
[1641088635965,1.3064,177.89,177.8,16.764]
[1641088636168,9.7404,177.89,177.8,16.764]
[1641088636368,10.0004,177.89,177.8,16.764]
[1641088637168,1.5664,177.89,177.8,16.764]
[1641088637369,1.5664,177.89,177.8,17.024]
[1641088637568,39.19079567,177.9,177.8,17.024]
[1641088637771,8.4334,177.9,177.8,16.764]
[1641088637969,1.2573,177.92,177.8,17.024]
[1641088638169,30.0911618,177.95,177.8,17.024]
[1641088638369,8.433,177.91,177.81,1.2177]
[1641088638572,8.433,177.91,177.82,16.763]
[1641088638776,27.31264308,177.9,177.82,16.763]
[1641088638975,27.57264308,177.9,177.82,16.763]
[1641088639978,36.00644308,177.9,177.8,8.4341]
[1641088640176,1.42669368,177.89,177.79,8.33]
[1641088640383,27.57264308,177.9,177.79,8.33]
[1641088640583,27.31264308,177.9,177.79,8.33]
[1641088640785,1.2455,177.89,177.79,8.33]
[1641088640988,27.31264308,177.9,177.79,8.33]
[1641088641387,27.31264308,177.9,177.79,9.6006]
[1641088642288,27.57264308,177.9,177.79,9.6006]
[1641088642705,8.4338,177.89,177.79,18.2951]
[1641088643005,0.26,177.89,177.79,18.2951]
[1641088643606,27.57264308,177.9,177.79,18.2951]
[1641088644607,36.00604308,177.9,177.79,18.2951]
[1641088647411,1.3159,177.89,177.79,18.2951]
[1641088647611,0.26,177.89,177.79,18.2951]
[1641088648212,36.00604308,177.9,177.79,18.2951]
[1641088649314,1.2892,177.89,177.79,18.2951]
[1641088649514,1.5492,177.89,177.79,18.2951]
[1641088650116,9.9832,177.89,177.79,18.2951]
[1641088650315,9.9832,177.89,177.79,18.0351]
[1641088650516,11.40989368,177.89,177.79,18.0351]
[1641088652123,11.40989368,177.89,177.79,18.2951]
[1641088653421,11.40989368,177.89,177.79,18.0351]
[1641088654026,11.14989368,177.89,177.79,18.0351]
[1641088654227,1.2892,177.89,177.79,18.0351]
[1641088654433,8.4334,177.9,177.79,18.0351]
[1641088654827,8.4334,177.9,177.79,18.2951]
[1641088656428,8.6934,177.9,177.79,18.2951]
[1641088656628,1.2229,177.89,177.79,18.2951]
[1641088656933,9.657,177.89,177.79,18.2951]
[1641088657131,9.917,177.89,177.79,18.2951]
[1641088658132,8.6941,177.89,177.79,18.2951]
[1641088658331,8.4332,177.91,177.79,18.2951]
[1641088658833,1.4807618,177.93,177.79,18.2951]
[1641088659234,1.4807618,177.95,177.79,18.2951]
[1641088659435,1.9807618,177.95,177.79,18.2951]
[1641088659634,8.4323,177.93,177.79,18.2951]
[1641088659833,32.83858978,177.93,177.79,18.2951]
[1641088660034,33.09858978,177.93,177.79,18.2951]
[1641088660234,33.09858978,177.93,177.79,17.7951]
[1641088661238,32.83858978,177.93,177.79,17.7951]
[1641088661461,24.40628978,177.93,177.79,121.9251]
[1641088663056,24.40628978,177.93,177.79,123.09179368]
[1641088663458,24.90628978,177.93,177.79,123.09179368]
[1641088663661,24.66628978,177.93,177.79,123.09179368]
[1641088664459,24.66628978,177.93,177.79,123.35179368]
[1641088668363,24.40628978,177.93,177.79,123.35179368]
[1641088668563,24.40628978,177.93,177.79,123.09179368]
[1641088669564,24.66628978,177.93,177.79,123.09179368]
[1641088669964,24.66628978,177.93,177.79,123.35179368]
[1641088670769,0.26,177.93,177.81,104.13]
[1641088670967,0.26,177.96,177.82,8.33]
[1641088671167,0.26,177.96,177.89,8.4294]
[1641088671367,1.4807618,177.98,177.89,8.4294]
[1641088671567,1.4807618,177.98,177.9,8.33]
[1641088671766,28.82958312,177.99,177.9,8.33]
[1641088672568,28.82958312,177.99,177.9,8.59]
[1641088673270,29.08958312,177.99,177.9,8.59]
[1641088673669,29.08958312,177.99,177.93,8.4288]
[1641088673869,30.41998312,177.99,177.93,8.4288]
[1641088674070,38.84948312,177.99,177.9,8.33]
[1641088675070,38.84948312,177.99,177.9,8.59]
[1641088675274,30.41998312,177.99,177.93,8.429]
[1641088675471,29.08958312,177.99,177.93,8.429]
[1641088676074,29.08958312,177.99,177.9,8.33]
[1641088677880,37.51908312,177.99,177.91,8.4296]
[1641088678281,38.01908312,177.99,177.88,8.33]
[1641088679081,8.4317,177.94,177.88,16.761]
[1641088679482,8.6917,177.94,177.88,16.761]
[1641088679684,13.6857,177.94,177.85,8.33]
[1641088680483,13.6857,177.94,177.86,8.432]
[1641088680686,14.1857,177.94,177.8,28.109]
[1641088680884,14.1857,177.94,177.81,8.33]
[1641088681486,8.4335,177.91,177.84,8.4333]
[1641088681886,8.6935,177.91,177.84,8.4333]
[1641088683285,8.6935,177.91,177.81,8.33]
[1641088683286,8.6935,177.91,177.83,8.4338]
[1641088683986,0.26,177.91,177.83,8.4338]
[1641088684392,29.98654134,177.92,177.83,16.7638]
[1641088685591,0.26,177.92,177.83,16.7638]
[1641088685792,0.26,177.92,177.83,17.0238]
[1641088685991,9.9431,177.94,177.83,17.0238]
[1641088686998,1.5111,177.94,177.83,17.0238]
[1641088688019,1.2511,177.94,177.83,17.0238]
[1641088689422,1.5111,177.94,177.83,17.0238]
[1641088689621,1.2511,177.94,177.83,17.0238]
[1641088689821,1.5111,177.94,177.83,17.0238]
[1641088690223,1.2511,177.94,177.83,17.0238]
[1641088691924,1.5111,177.94,177.83,17.0238]
[1641088696027,1.2511,177.94,177.83,17.0238]
[1641088696227,2.8108618,177.98,177.83,17.0238]
[1641088696430,1.2691,177.97,177.84,1.42669368]
[1641088696631,1.2691,177.97,177.9,8.429]
[1641088696832,1.5291,177.97,177.9,8.429]
[1641088697036,1.2691,177.97,177.9,8.689]
[1641088698532,0.26,177.97,177.9,17.019]
[1641088699032,76.0675,177.99,177.9,17.019]
[1641088701033,76.0675,177.99,177.9,16.759]
[1641088702536,76.0675,177.99,177.9,17.019]
[1641088705342,0.26,177.99,177.9,17.019]
[1641088705643,1.4643,178.01,177.9,17.019]
[1641088706047,1.4643,178.01,177.9,18.3118]
[1641088710348,1.4643,178.01,177.9,18.0518]
[1641088710547,1.4643,178.01,177.9,18.3118]
[1641088717887,1.2043,178.01,177.9,18.3118]
[1641088720588,1.4643,178.01,177.9,18.3118]
[1641088720790,1.2043,178.01,177.9,18.3118]
[1641088720989,1.4643,178.01,177.9,18.3118]
[1641088726595,1.2043,178.01,177.9,18.3118]
[1641088727896,1.4643,178.01,177.9,18.3118]
[1641088729897,1.2043,178.01,177.9,18.3118]
[1641088732204,1.4643,178.01,177.9,18.3118]
[1641088744143,1.4643,178.01,177.9,18.0518]
[1641088745444,2.9450618,178.01,177.9,18.0518]
[1641088746244,1.4643,178.01,177.9,18.0518]
[1641088746743,9.8932,178.01,177.9,18.0518]
[1641088746944,11.3739618,178.01,177.9,18.0518]
[1641088751949,9.8932,178.01,177.9,18.0518]
[1641088759156,9.3932,178.01,177.9,18.0518]
[1641088761861,9.1332,178.01,177.9,18.0518]
[1641088762062,0.7043,178.01,177.9,18.3118]
[1641088762262,0.7043,178.01,177.9,18.0518]
[1641088762464,2.1850618,178.01,177.9,18.0518]
[1641088762666,2.1850618,178.01,177.9,18.3118]
[1641088762963,0.7043,178.01,177.9,18.3118]
[1641088769492,0.7043,178.01,177.9,25.3088]
[1641088770293,0.7043,178.01,177.9,25.0488]
[1641088770294,9.133,178.01,177.9,25.0488]
[1641088770597,9.393,178.01,177.9,25.0488]
[1641088771292,0.9643,178.01,177.9,25.0488]
[1641088771492,0.7043,178.01,177.9,25.3088]
[1641088777302,0.7043,178.01,177.9,18.3118]
[1641088777502,9.1329,178.01,177.9,18.3118]
[1641088777907,9.8929,178.01,177.9,18.3118]
[1641088781005,9.3929,178.01,177.9,18.3118]
[1641088784311,8.8929,178.01,177.9,18.3118]
[1641088785111,8.6886,178.01,177.9,18.3118]
[1641088785716,9.7099,178.0,177.9,18.3118]
[1641088786115,9.9699,178.0,177.9,18.3118]
[1641088786518,9.9699,178.0,177.9,17.3118]
[1641088789418,9.7099,178.0,177.9,17.3118]
[1641088789619,1.2811,178.0,177.9,17.3118]
[1641088790120,29.04645623,178.02,177.9,17.3118]
[1641088790320,1.4807618,178.03,177.9,25.33249368]
[1641088790622,1.4807618,178.05,177.9,99.65399368]
[1641088791220,23.1468699,178.04,177.9,99.65399368]
[1641088793149,23.4068699,178.04,177.9,99.65399368]
[1641088796253,23.1468699,178.04,177.91,104.13]
[1641088796455,23.1468699,178.04,177.92,8.33]
[1641088796653,23.1468699,178.04,177.98,8.4254]
[1641088796853,23.1468699,178.04,177.98,16.7554]
[1641088797055,23.1468699,178.04,177.98,17.0154]
[1641088797955,23.1468699,178.04,177.86,104.13]
[1641088798153,72.2803,178.03,177.88,9.6463]
[1641088798356,72.7803,178.03,177.88,9.6463]
[1641088798555,73.0403,178.03,177.88,37.7416]
[1641088798754,1.3095,178.02,177.88,37.7416]
[1641088798955,1.8095,178.02,177.88,37.7416]
[1641088799158,8.4293,177.99,177.88,37.7416]
[1641088799557,8.6893,177.99,177.88,37.7416]
[1641088800059,1.2916,177.98,177.93,8.4291]
[1641088800258,8.6893,177.99,177.93,8.4291]
[1641088800459,0.26,177.98,177.93,8.4291]
[1641088800662,8.6893,177.99,177.93,8.4291]
[1641088801561,8.4293,177.99,177.93,8.4291]
[1641088801761,8.4286,178.0,177.93,8.4291]
[1641088803361,8.6886,178.0,177.93,8.4291]
[1641088809965,9.1886,178.0,177.93,8.4291]
[1641088810970,9.1886,178.0,177.92,8.4296]
[1641088811769,9.1886,178.0,177.88,8.33]
[1641088812169,8.6886,178.0,177.88,8.33]
[1641088812569,8.43,177.97,177.88,8.33]
[1641088812969,8.69,177.97,177.88,8.33]
[1641088813269,8.69,177.97,177.91,8.4297]
[1641088815072,0.26,177.97,177.91,8.4297]
[1641088815471,8.6895,177.98,177.91,8.4297]
[1641088815673,8.4295,177.98,177.91,8.4297]
[1641088815972,1.2316,177.99,177.91,8.4297]
[1641088817172,1.4916,177.99,177.91,8.4297]
[1641088817573,9.9207,177.99,177.91,8.4297]
[1641088823384,1.4916,177.99,177.91,16.7597]
[1641088823582,1.2316,177.99,177.91,17.0197]
[1641088824184,1.2316,177.99,177.92,1.2174]
[1641088824383,1.2316,177.99,177.95,8.4277]
[1641088824584,150.9181,178.03,177.95,8.4277]
[1641088825186,152.1708,178.03,177.95,8.4277]
[1641088825585,8.4276,178.02,177.95,8.4277]
[1641088826821,8.6876,178.02,177.95,8.4277]
[1641088827422,8.6876,178.02,177.94,8.4287]
[1641088828023,8.6876,178.02,177.91,8.33]
[1641088828234,9.1876,178.02,177.88,89.469]
[1641088828423,1.2056,178.01,177.88,89.469]
[1641088828623,8.4302,177.97,177.91,8.4299]
[1641088829026,8.6902,177.97,177.91,8.4299]
[1641088829426,8.6902,177.97,177.88,8.33]
[1641088829625,1.2625,177.96,177.88,8.4312]
[1641088829824,8.4312,177.95,177.88,8.4312]
[1641088830026,8.6912,177.95,177.88,8.4312]
[1641088833533,8.6912,177.95,177.87,8.432]
[1641088839269,8.4312,177.95,177.87,8.432]
[1641088839472,8.4312,177.95,177.87,8.692]
[1641088840472,8.6912,177.95,177.87,8.692]
[1641088841176,8.4312,177.95,177.87,8.432]
[1641088841376,78.2681,177.98,177.87,8.432]
[1641088841576,79.5446,177.98,177.92,8.4294]
[1641088841777,1.2765,177.98,177.92,8.4294]
[1641088842577,1.5365,177.98,177.92,8.4294]
[1641088847984,10.4666,177.98,177.85,1.2836]
[1641088848184,11.89329368,177.98,177.85,1.2836]
[1641088849589,11.89329368,177.98,177.85,9.7162]
[1641088850188,10.4666,177.98,177.85,9.7162]
[1641088850891,10.4666,177.98,177.85,8.4326]
[1641088851092,11.89329368,177.98,177.85,8.4326]
[1641088851292,13.37405548,177.98,177.85,8.4326]
[1641088851693,11.9473618,177.98,177.85,8.4326]
[1641088851891,1.42669368,177.97,177.85,8.4326]
[1641088852095,29.79419368,177.97,177.85,8.4326]
[1641088852293,30.29419368,177.97,177.85,8.4326]
[1641088852900,1.2777,177.96,177.85,8.4326]
[1641088853100,8.4319,177.93,177.85,8.4326]
[1641088853600,8.6919,177.93,177.85,8.4326]
[1641088855103,8.4319,177.93,177.85,8.4326]
[1641088855703,8.4319,177.93,177.85,8.6926]
[1641088855903,8.4319,177.93,177.85,8.4326]
[1641088856520,8.6919,177.93,177.85,8.4326]
[1641088857322,9.9875,177.93,177.85,8.4326]
[1641088858929,10.4875,177.93,177.85,8.4326]
[1641088859829,10.4875,177.93,177.83,16.7636]
[1641088860226,10.2275,177.93,177.83,16.7636]
[1641088860527,9.7275,177.93,177.83,16.7636]
[1641088861128,9.7275,177.93,177.83,17.0236]
[1641088861530,9.9875,177.93,177.83,17.0236]
[1641088863734,9.9875,177.93,177.83,18.3194]
[1641088863934,9.7275,177.93,177.83,18.3194]
[1641088865336,9.9875,177.93,177.83,18.3194]
[1641088867238,9.7275,177.93,177.83,18.3194]
[1641088867937,1.2956,177.93,177.83,18.3194]
[1641088868539,1.5556,177.93,177.83,18.3194]
[1641088872344,8.431,177.95,177.83,18.3194]
[1641088872944,1.2542,177.94,177.83,18.3194]
[1641088873744,1.5142,177.94,177.83,18.3194]
[1641088873945,1.2542,177.94,177.83,18.3194]
[1641088874146,1.5142,177.94,177.83,18.3194]
[1641088878077,8.4301,177.97,177.83,18.3194]
[1641088878276,378.13854524,178.03,177.85,104.13]
[1641088878476,378.13854524,178.03,177.94,8.4261]
[1641088878676,378.13854524,178.03,177.95,8.33]
[1641088879075,376.65778344,178.03,177.95,8.59]
[1641088879275,29.10969802,178.02,177.95,8.59]
[1641088879476,29.10969802,178.02,177.95,8.33]
[1641088880075,29.36969802,178.02,177.95,8.33]
[1641088880677,38.29789802,178.02,177.9,8.33]
[1641088880878,38.29789802,178.02,177.91,8.33]
[1641088881078,1.2558,178.01,177.91,8.33]
[1641088881479,1.5158,178.01,177.91,8.33]
[1641088882477,2.0158,178.01,177.91,8.33]
[1641088882677,8.4292,178.0,177.93,8.4292]
[1641088882981,8.6892,178.0,177.93,8.4292]
[1641088883480,0.26,178.0,177.93,8.4292]
[1641088883878,1.5158,178.01,177.93,8.4292]
[1641088884479,2.0158,178.01,177.93,8.4292]
[1641088885585,8.429,178.0,177.93,8.4292]
[1641088885983,8.689,178.0,177.93,8.4292]
[1641088886184,1.2558,178.01,177.93,8.4292]
[1641088886582,29.10969802,178.02,177.93,8.4292]
[1641088887585,37.53779802,178.02,177.93,8.4292]
[1641088888386,37.79779802,178.02,177.93,8.4292]
[1641088889085,29.36969802,178.02,177.93,8.4292]
[1641088890287,39.00629802,178.02,177.93,8.4292]
[1641088890489,39.50629802,178.02,177.91,8.4298]
[1641088890689,46.96729802,178.02,177.87,73.7376]
[1641088891487,46.96729802,178.02,177.88,8.4315]
[1641088891888,46.96729802,178.02,177.87,73.7376]
[1641088892691,8.33,178.01,177.86,72.4255]
[1641088892890,8.33,178.01,177.87,8.432]
[1641088892891,8.432,177.94,177.87,8.432]
[1641088893092,8.692,177.94,177.87,8.432]
[1641088893917,9.192,177.94,177.87,8.432]
[1641088894296,8.692,177.94,177.82,28.1064]
[1641088894497,15.657,177.94,177.79,36.4404]
[1641088894696,1.2144,177.93,177.79,8.33]
[1641088894896,8.4347,177.88,177.79,8.33]
[1641088895095,8.6947,177.88,177.79,8.33]
[1641088895797,38.24650766,177.88,177.81,8.4342]
[1641088895994,8.6947,177.88,177.81,8.4342]
[1641088896396,9.1947,177.88,177.81,8.4342]
[1641088896995,8.6947,177.88,177.81,8.4342]
[1641088897196,8.4347,177.88,177.81,8.4342]
[1641088898995,8.6947,177.88,177.81,8.4342]
[1641088900397,9.1947,177.88,177.81,8.4342]
[1641088900599,8.6947,177.88,177.81,8.4342]
[1641088901200,8.4347,177.88,177.81,8.4342]
[1641088902401,8.9347,177.88,177.81,8.4342]
[1641088902602,9.1947,177.88,177.81,8.4342]
[1641088906610,8.6947,177.88,177.81,8.4342]
[1641088906809,1.2312,177.9,177.82,8.33]
[1641088908012,1.7312,177.9,177.82,8.33]
[1641088908415,1.2312,177.9,177.82,8.33]
[1641088909033,1.7312,177.9,177.82,8.33]
[1641088909234,1.4912,177.9,177.82,8.33]
[1641088909835,1.9912,177.9,177.82,8.33]
[1641088910134,9.9247,177.9,177.83,8.4332]
[1641088910334,1.4912,177.9,177.83,8.4332]
[1641088911735,1.9912,177.9,177.83,8.4332]
[1641088911935,1.4912,177.9,177.83,8.4332]
[1641088912335,9.9247,177.9,177.83,8.4332]
[1641088912735,10.4247,177.9,177.83,8.4332]
[1641088913942,9.9247,177.9,177.83,8.4332]
[1641088914340,10.4247,177.9,177.83,8.4332]
[1641088914940,10.4247,177.9,177.82,8.33]
[1641088915440,10.4247,177.9,177.81,8.4342]
[1641088915441,28.72915886,177.89,177.81,8.4342]
[1641088915640,37.16355886,177.89,177.81,8.4342]
[1641088915842,37.66355886,177.89,177.81,8.4342]
[1641088916241,37.16355886,177.89,177.81,8.4342]
[1641088916842,37.66355886,177.89,177.81,8.4342]
[1641088917044,37.92355886,177.89,177.81,8.4342]
[1641088917442,9.1944,177.89,177.81,8.4342]
[1641088918043,0.26,177.89,177.81,8.6942]
[1641088918444,32.59729737,177.9,177.81,8.4342]
[1641088918644,32.83729737,177.9,177.81,8.4342]
[1641088918845,33.09729737,177.9,177.81,8.4342]
[1641088919047,8.4344,177.89,177.81,8.4342]
[1641088919447,8.6944,177.89,177.81,8.4342]
[1641088919648,9.1944,177.89,177.81,8.4342]
[1641088919850,8.6944,177.89,177.81,8.4342]
[1641088921352,0.26,177.89,177.81,8.4342]
[1641088921552,1.4912,177.9,177.81,8.6942]
[1641088921752,1.7312,177.9,177.81,8.6942]
[1641088921953,1.9912,177.9,177.81,8.6942]
[1641088922754,1.4912,177.9,177.81,8.6942]
[1641088922956,9.9247,177.9,177.81,8.6942]
[1641088924257,9.9247,177.9,177.81,8.4342]
[1641088924857,10.4247,177.9,177.81,8.4342]
[1641088925859,9.9247,177.9,177.81,8.4342]
[1641088926460,10.4247,177.9,177.81,8.4342]
[1641088926662,9.9247,177.9,177.81,8.4342]
[1641088927261,10.4247,177.9,177.81,8.4342]
[1641088927461,9.9247,177.9,177.81,8.4342]
[1641088927682,8.4335,177.9,177.81,16.7642]
[1641088927987,2.6910618,177.96,177.81,24.3052]
[1641088928184,1.323,177.95,177.81,24.3052]
[1641088928783,25.19041431,177.94,177.88,8.4311]
[1641088929484,73.6277,177.97,177.88,8.4311]
[1641088929684,74.9126,177.97,177.88,8.4311]
[1641088929885,75.4126,177.97,177.88,8.4311]
[1641088930085,74.9126,177.97,177.88,8.4311]
[1641088930287,8.431,177.96,177.88,8.4311]
[1641088930584,31.11316551,177.95,177.88,8.4311]
[1641088930985,31.87316551,177.95,177.88,8.4311]
[1641088932689,40.30456551,177.95,177.88,8.4311]
[1641088933090,40.04456551,177.95,177.88,8.4311]